fUSD/lending_fUSD_20241128
["ID","MTS","AMOUNT","RATE_DAILY","PERIOD"]
[343667313,1732815043528,-26223.11886194,0.0001,2]
[343667314,1732815043541,-12629.40657622,0.0001,2]
[343667320,1732815046199,-2500.0,9.899e-05,2]
[343667321,1732815046208,-1832006.6061282,0.0001,2]
[343667322,1732815046220,-11716.04741828,0.0001,2]
[343667323,1732815046233,-3231.475022,0.0001,2]
[343667325,1732815672427,1000.0,0.0001,20]
[343667351,1732816232390,-1142.52,8.219e-05,2]
[343667352,1732816232399,-15462.7098,8.871e-05,2]
[343667353,1732816232408,-184.67,9.041e-05,2]
[343667354,1732816232418,-250.0,9.094e-05,2]
[343667355,1732816232428,-12623.60288893,9.094e-05,2]
[343667356,1732816232437,-1000.0,9.175e-05,2]
[343667357,1732816232446,-150.0,9.781e-05,2]
[343667358,1732816232456,-1737.61793955,9.781e-05,2]
[343667359,1732816232466,-31368.412,9.8e-05,2]
[343667360,1732816232478,-308.49,9.8e-05,2]
[343667361,1732816232488,-1096.0,9.9e-05,2]
[343667362,1732816232497,-261.44312275,9.979e-05,2]
[343667363,1732816232506,-261.44312275,9.983e-05,2]
[343667364,1732816232516,-261.44312275,9.984e-05,2]
[343667365,1732816232525,-261.44312275,9.985e-05,2]
[343667366,1732816232534,-261.44312275,9.986e-05,2]
[343667367,1732816232543,-1431.506,9.989e-05,2]
[343667368,1732816232553,-246.92,9.99e-05,2]
[343667369,1732816232563,-261.44312275,9.996e-05,2]
[343667370,1732816232572,-150.0,9.997e-05,2]
[343667371,1732816232581,-500.0,9.998e-05,2]
[343667372,1732816232590,-500.0,9.998e-05,2]
[343667373,1732816232599,-500.0,9.998e-05,2]
[343667374,1732816232608,-562.7085732,9.998e-05,2]
[343667375,1732816232617,-500.0,9.998e-05,2]
[343667376,1732816232626,-500.0,9.998e-05,2]
[343667377,1732816232635,-500.0,9.998e-05,2]
[343667378,1732816232644,-500.0,9.998e-05,2]
[343667379,1732816232653,-500.0,9.998e-05,2]
[343667380,1732816232662,-288.37,9.998e-05,2]
[343667381,1732816232671,-500.0,9.998e-05,2]
[343667382,1732816232681,-500.0,9.998e-05,2]
[343667383,1732816232690,-500.0,9.998e-05,2]
[343667384,1732816232699,-500.0,9.998e-05,2]
[343667386,1732816232707,-500.0,9.998e-05,2]
[343667387,1732816232716,-500.0,9.998e-05,2]
[343667389,1732816232726,-500.0,9.998e-05,2]
[343667391,1732816232735,-509.51343428,9.998e-05,2]
[343667393,1732816232744,-500.0,9.998e-05,2]
[343667395,1732816232753,-500.0,9.998e-05,2]
[343667397,1732816232762,-500.0,9.998e-05,2]
[343667399,1732816232773,-637.04,9.998e-05,2]
[343667400,1732816232782,-500.0,9.998e-05,2]
[343667401,1732816232791,-501.28741361,9.998e-05,2]
[343667402,1732816232800,-500.0,9.998e-05,2]
[343667403,1732816232809,-500.0,9.998e-05,2]
[343667404,1732816232819,-500.0,9.998e-05,2]
[343667405,1732816232828,-500.0,9.998e-05,2]
[343667406,1732816232838,-500.0,9.998e-05,2]
[343667407,1732816232847,-500.0,9.998e-05,2]
[343667408,1732816232857,-518.63580853,9.998e-05,2]
[343667409,1732816232866,-500.0,9.998e-05,2]
[343667410,1732816232875,-462.11019707,9.998e-05,2]
[343667411,1732816232884,-500.0,9.998e-05,2]
[343667412,1732816232893,-500.0,9.998e-05,2]
[343667413,1732816232902,-503.39,9.998e-05,2]
[343667414,1732816232911,-504.23,9.999e-05,2]
[343667415,1732816232921,-150.01,9.999e-05,2]
[343667416,1732816232930,-5800.0,9.999e-05,2]
[343667417,1732816232939,-500.0,9.999e-05,2]
[343667418,1732816232948,-500.0,9.999e-05,2]
[343667419,1732816232958,-630.82,9.999e-05,2]
[343667420,1732816232967,-500.0,9.999e-05,2]
[343667421,1732816232977,-500.0,9.999e-05,2]
[343667422,1732816232986,-500.0,9.999e-05,2]
[343667423,1732816232996,-312.81369543,9.999e-05,2]
[343667424,1732816233005,-500.0,9.999e-05,2]
[343667425,1732816233015,-500.0,9.999e-05,2]
[343667426,1732816233030,-500.0,9.999e-05,2]
[343667427,1732816233041,-466.51,9.999e-05,2]
[343667428,1732816233051,-500.0,9.999e-05,2]
[343667429,1732816233060,-255.06,9.999e-05,2]
[343667430,1732816233069,-565.89,9.999e-05,2]
[343667431,1732816233078,-500.0,9.999e-05,2]
[343667432,1732816233088,-500.0,9.999e-05,2]
[343667433,1732816233097,-500.0,9.999e-05,2]
[343667434,1732816233106,-500.0,9.999e-05,2]
[343667435,1732816233115,-425.25083911,9.999e-05,2]
[343667436,1732816233125,-500.0,9.999e-05,2]
[343667437,1732816233135,-500.0,9.999e-05,2]
[343667438,1732816233144,-500.0,9.999e-05,2]
[343667439,1732816233153,-500.0,9.999e-05,2]
[343667440,1732816233162,-500.0,9.999e-05,2]
[343667441,1732816233172,-500.0,9.999e-05,2]
[343667442,1732816233181,-500.0,9.999e-05,2]
[343667443,1732816233190,-612.26,9.999e-05,2]
[343667444,1732816233199,-500.0,9.999e-05,2]
[343667445,1732816233208,-500.0,9.999e-05,2]
[343667446,1732816233217,-446.37,9.999e-05,2]
[343667447,1732816233226,-500.0,9.999e-05,2]
[343667448,1732816233235,-500.0,9.999e-05,2]
[343667449,1732816233244,-500.0,9.999e-05,2]
[343667450,1732816233253,-500.0,9.999e-05,2]
[343667451,1732816233263,-382.36,9.999e-05,2]
[343667452,1732816233275,-500.0,9.999e-05,2]
[343667453,1732816233284,-500.0,9.999e-05,2]
[343667454,1732816233293,-500.0,9.999e-05,2]
[343667455,1732816233303,-500.0,9.999e-05,2]
[343667456,1732816233312,-500.0,9.999e-05,2]
[343667457,1732816233321,-500.0,9.999e-05,2]
[343667458,1732816233330,-500.0,9.999e-05,2]
[343667459,1732816233339,-504.36,9.999e-05,2]
[343667460,1732816233349,-435.72133139,9.999e-05,2]
[343667461,1732816233410,-64.27866861,9.999e-05,2]
[343667462,1732816233420,-500.0,9.999e-05,2]
[343667463,1732816233430,-480.03133139,9.999e-05,2]
[343667466,1732816238445,-19.96866861,9.999e-05,2]
[343667467,1732816238455,-500.0,9.999e-05,2]
[343667468,1732816238465,-529.01,9.999e-05,2]
[343667469,1732816238478,-768.52,9.999e-05,2]
[343667470,1732816238487,-664.21911141,9.999e-05,2]
[343667471,1732816238498,-104.30088859,9.999e-05,2]
[343667472,1732816238507,-768.52,9.999e-05,2]
[343667473,1732816238517,-768.52,9.999e-05,2]
[343667474,1732816238528,-768.52,9.999e-05,2]
[343667475,1732816238537,-768.52,9.999e-05,2]
[343667476,1732816238547,-768.52,9.999e-05,2]
[343667477,1732816238557,-768.52,9.999e-05,2]
[343667478,1732816238567,-768.52,9.999e-05,2]
[343667479,1732816238576,-768.52,9.999e-05,2]
[343667480,1732816238585,-768.52,9.999e-05,2]
[343667481,1732816238595,-768.52,9.999e-05,2]
[343667482,1732816238604,-301.48,9.999e-05,2]
[343667483,1732816238613,-768.52,9.999e-05,2]
[343667484,1732816238624,-768.52,9.999e-05,2]
[343667485,1732816238633,-768.52,9.999e-05,2]
[343667486,1732816238642,-264.23918873,9.999e-05,2]
[343667494,1732816240309,-504.28081127,9.999e-05,2]
[343667495,1732816240319,-768.52,9.999e-05,2]
[343667496,1732816240328,-371.43500011,9.999e-05,2]
[343667497,1732816240415,-397.08499989,9.999e-05,2]
[343667498,1732816240425,-768.52,9.999e-05,2]
[343667499,1732816240435,-768.52,9.999e-05,2]
[343667500,1732816240444,-768.52,9.999e-05,2]
[343667501,1732816240454,-768.52,9.999e-05,2]
[343667502,1732816240464,-768.52,9.999e-05,2]
[343667503,1732816240473,-768.65825563,9.999e-05,2]
[343667504,1732816240485,-500.0,9.999e-05,2]
[343667505,1732816240494,-500.0,9.999e-05,2]
[343667506,1732816240503,-643.94136092,9.999e-05,2]
[343667507,1732816240513,-160.05,9.999e-05,2]
[343667508,1732816240523,-317.96506341,9.999e-05,2]
[343667509,1732816240535,-325.28493659,9.999e-05,2]
[343667510,1732816240544,-151.28528179,9.999e-05,2]
[343667511,1732816240555,-50.29770138,9.999e-05,2]
[343667513,1732816240567,-449.70229862,9.999e-05,2]
[343667514,1732816240577,-500.0,9.999e-05,2]
[343667515,1732816240587,-488.43770132,9.999e-05,2]
[343667537,1732816246164,-11.56229868,9.999e-05,2]
[343667538,1732816246173,-387.98522472,9.999e-05,2]
[343667539,1732816246363,-112.01477528,9.999e-05,2]
[343667540,1732816246372,-500.0,9.999e-05,2]
[343667541,1732816246381,-500.0,9.999e-05,2]
[343667542,1732816246391,-500.0,9.999e-05,2]
[343667543,1732816246400,-363.55,9.999e-05,2]
[343667544,1732816246409,-500.0,9.999e-05,2]
[343667545,1732816246419,-500.0,9.999e-05,2]
[343667546,1732816246428,-537.27,9.999e-05,2]
[343667547,1732816246437,-500.0,9.999e-05,2]
[343667548,1732816246447,-500.0,9.999e-05,2]
[343667549,1732816246455,-500.0,9.999e-05,2]
[343667550,1732816246464,-524.28,9.999e-05,2]
[343667551,1732816246474,-500.0,9.999e-05,2]
[343667552,1732816246485,-500.0,9.999e-05,2]
[343667553,1732816246494,-500.0,9.999e-05,2]
[343667554,1732816246503,-500.0,9.999e-05,2]
[343667555,1732816246512,-500.0,9.999e-05,2]
[343667556,1732816246522,-5800.0,9.999e-05,2]
[343667557,1732816246538,-500.0,9.999e-05,2]
[343667558,1732816246547,-482.76533516,9.999e-05,2]
[343667559,1732816246557,-500.0,9.999e-05,2]
[343667560,1732816246566,-230.17,9.999e-05,2]
[343667561,1732816246576,-500.0,9.999e-05,2]
[343667562,1732816246585,-500.0,9.999e-05,2]
[343667563,1732816246594,-500.0,9.999e-05,2]
[343667564,1732816246604,-500.0,9.999e-05,2]
[343667565,1732816246613,-500.0,9.999e-05,2]
[343667566,1732816246622,-500.0,9.999e-05,2]
[343667567,1732816246632,-500.0,9.999e-05,2]
[343667568,1732816246641,-500.0,9.999e-05,2]
[343667569,1732816246651,-432.97286079,9.999e-05,2]
[343667570,1732816246660,-500.0,9.999e-05,2]
[343667571,1732816246669,-500.0,9.999e-05,2]
[343667572,1732816246678,-550.38,9.999e-05,2]
[343667573,1732816246687,-566.69,9.999e-05,2]
[343667574,1732816246697,-500.0,9.999e-05,2]
[343667575,1732816246706,-617.6683503,9.999e-05,2]
[343667576,1732816246715,-500.0,9.999e-05,2]
[343667577,1732816246724,-500.0,9.999e-05,2]
[343667578,1732816246926,-3260.82,9.999e-05,2]
[343667579,1732816246936,-3260.82,9.999e-05,2]
[343667580,1732816246945,-3260.82,9.999e-05,2]
[343667581,1732816246954,-3260.82,9.999e-05,2]
[343667582,1732816246963,-3260.82,9.999e-05,2]
[343667583,1732816246972,-3260.82,9.999e-05,2]
[343667584,1732816246981,-3260.82,9.999e-05,2]
[343667585,1732816246990,-3260.82,9.999e-05,2]
[343667586,1732816246999,-3260.82,9.999e-05,2]
[343667587,1732816247008,-3260.82,9.999e-05,2]
[343667588,1732816247017,-3260.82,9.999e-05,2]
[343667589,1732816247026,-3260.82,9.999e-05,2]
[343667590,1732816247044,-3260.82,9.999e-05,2]
[343667591,1732816247053,-3260.82,9.999e-05,2]
[343667592,1732816247062,-3260.82,9.999e-05,2]
[343667593,1732816247071,-3260.82,9.999e-05,2]
[343667594,1732816247080,-3260.82,9.999e-05,2]
[343667595,1732816247089,-3260.82,9.999e-05,2]
[343667596,1732816247098,-3260.82,9.999e-05,2]
[343667597,1732816247107,-3260.82,9.999e-05,2]
[343667598,1732816247116,-3260.82,9.999e-05,2]
[343667599,1732816247125,-3260.82,9.999e-05,2]
[343667600,1732816247136,-3260.82,9.999e-05,2]
[343667601,1732816247148,-3261.04851232,9.999e-05,2]
[343667602,1732816247157,-150.01,9.999e-05,2]
[343667603,1732816247167,-151.28528177,9.999e-05,2]
[343667604,1732816247177,-532.0,9.999e-05,2]
[343667605,1732816247185,-61817.0431394,9.999e-05,2]
[343667606,1732816247195,-546.60995705,9.999e-05,2]
[343667607,1732816247204,-151.28528177,0.0001,2]
[343667608,1732816247213,-86304.91069836,0.0001,2]
[343667609,1732816247226,-734.80000681,0.0001,2]
[343667611,1732816484327,-1000.0,9.392e-05,2]
[343667612,1732816484351,-300.0,9.909e-05,2]
[343667613,1732816484381,-150.0,9.909e-05,2]
[343667614,1732816484411,-102220.81950532,9.91e-05,2]
[343667615,1732816484437,-508.0,9.91e-05,2]
[343667616,1732816484466,-490.28,9.91e-05,2]
[343667617,1732816484496,-500.62,9.91e-05,2]
[343667618,1732816484524,-507.0,9.91e-05,2]
[343667619,1732816484553,-506.54,9.91e-05,2]
[343667620,1732816484584,-492.28,9.91e-05,2]
[343667621,1732816484614,-31978.15172074,9.999e-05,2]
[343667622,1732816484645,-273.30497852,9.999e-05,2]
[343667623,1732816484675,-508.56,9.999e-05,2]
[343667624,1732816484705,-235.77586614,9.999e-05,2]
[343667625,1732816484734,-340.69,9.999e-05,2]
[343667626,1732816484764,-2919.23,9.999e-05,2]
[343667627,1732816484792,-2919.23,9.999e-05,2]
[343667628,1732816484822,-2919.23,9.999e-05,2]
[343667629,1732816484852,-2919.23,9.999e-05,2]
[343667630,1732816484881,-2919.23,9.999e-05,2]
[343667631,1732816484910,-2919.23,9.999e-05,2]
[343667632,1732816484940,-2919.23,9.999e-05,2]
[343667633,1732816484967,-2919.23,9.999e-05,2]
[343667634,1732816485013,-2919.23,9.999e-05,2]
[343667635,1732816485040,-2919.23,9.999e-05,2]
[343667636,1732816485070,-2919.23,9.999e-05,2]
[343667637,1732816485098,-2919.23,9.999e-05,2]
[343667638,1732816485122,-2919.23,9.999e-05,2]
[343667639,1732816485150,-2919.23,9.999e-05,2]
[343667640,1732816485177,-2919.23,9.999e-05,2]
[343667641,1732816485204,-2919.23,9.999e-05,2]
[343667642,1732816485231,-2919.23,9.999e-05,2]
[343667643,1732816485273,-2919.23,9.999e-05,2]
[343667644,1732816485314,-2919.23,9.999e-05,2]
[343667645,1732816485344,-2919.23,9.999e-05,2]
[343667646,1732816485373,-2919.23,9.999e-05,2]
[343667647,1732816485404,-2919.23,9.999e-05,2]
[343667648,1732816485433,-2919.23,9.999e-05,2]
[343667649,1732816485462,-2919.41251337,9.999e-05,2]
[343667650,1732816485491,-4161.05,9.999e-05,2]
[343667651,1732816485528,-4161.05,9.999e-05,2]
[343667652,1732816485564,-4161.05,9.999e-05,2]
[343667653,1732816485596,-4161.05,9.999e-05,2]
[343667654,1732816485626,-4161.05,9.999e-05,2]
[343667655,1732816485658,-4161.05,9.999e-05,2]
[343667656,1732816485687,-4161.05,9.999e-05,2]
[343667657,1732816485716,-4161.05,9.999e-05,2]
[343667658,1732816485745,-4161.05,9.999e-05,2]
[343667659,1732816485774,-4161.05,9.999e-05,2]
[343667660,1732816485803,-4161.05,9.999e-05,2]
[343667661,1732816485830,-4161.05,9.999e-05,2]
[343667662,1732816485858,-4161.05,9.999e-05,2]
[343667663,1732816485886,-4161.05,9.999e-05,2]
[343667664,1732816485913,-4161.05,9.999e-05,2]
[343667665,1732816485946,-4161.05,9.999e-05,2]
[343667666,1732816485974,-4161.05,9.999e-05,2]
[343667667,1732816486003,-4161.05,9.999e-05,2]
[343667668,1732816486031,-4161.05,9.999e-05,2]
[343667669,1732816486059,-4161.05,9.999e-05,2]
[343667670,1732816486088,-4161.05,9.999e-05,2]
[343667671,1732816486118,-4161.05,9.999e-05,2]
[343667672,1732816486147,-4161.05,9.999e-05,2]
[343667673,1732816486176,-4161.27876051,9.999e-05,2]
[343667674,1732816486206,-5645.42,9.999e-05,2]
[343667675,1732816486234,-5645.42,9.999e-05,2]
[343667676,1732816486263,-5645.42,9.999e-05,2]
[343667677,1732816486291,-5645.42,9.999e-05,2]
[343667678,1732816486320,-5645.42,9.999e-05,2]
[343667679,1732816486349,-5645.42,9.999e-05,2]
[343667680,1732816486379,-5645.42,9.999e-05,2]
[343667681,1732816486408,-542.9066554,9.999e-05,2]
[343668176,1732817438398,-959.59,8.219e-05,2]
[343668360,1732817440556,-149.8,8.219e-05,2]
[343668361,1732817440567,-207.37000001,9e-05,2]
[343668362,1732817440594,-1592.62999899,9e-05,2]
[343668364,1732817440603,-250.0,9.283e-05,2]
[343668366,1732817440613,-1000.0,9.311e-05,2]
[343668368,1732817440623,-1198.0,9.7e-05,2]
[343668370,1732817440633,-500.0,9.808e-05,2]
[343668372,1732817440643,-1000.0,9.9e-05,2]
[343668373,1732817440652,-683.00976274,9.9e-05,2]
[343668374,1732817440666,-316.99023726,9.9e-05,2]
[343668375,1732817440675,-1000.0,9.9e-05,2]
[343668376,1732817440685,-1000.0,9.9e-05,2]
[343668377,1732817440694,-1000.0,9.9e-05,3]
[343668378,1732817440704,-1000.0,9.9e-05,3]
[343668379,1732817440714,-491.99,9.91e-05,2]
[343668380,1732817440723,-509.95,9.991e-05,2]
[343668381,1732817440733,-1145.205,9.998e-05,2]
[343668382,1732817440743,-150.0,9.998e-05,2]
[343668383,1732817440753,-500.0,9.999e-05,2]
[343668384,1732817440763,-500.0,9.999e-05,2]
[343668385,1732817440772,-500.0,9.999e-05,2]
[343668386,1732817440782,-2800.08,9.999e-05,2]
[343668387,1732817440792,-698.09012853,9.999e-05,2]
[343668393,1732817443376,-2101.98987147,9.999e-05,2]
[343668394,1732817443385,-231.89376531,9.999e-05,2]
[343668395,1732817443484,-1930.24380968,9.999e-05,2]
[343668405,1732817443956,-419.81087525,9.999e-05,2]
[343668406,1732817443971,-218.13154976,9.999e-05,2]
[343668407,1732817443980,-526.36845024,9.999e-05,2]
[343668408,1732817443999,-2273.71154976,9.999e-05,2]
[343668409,1732817444008,-2800.08,9.999e-05,2]
[343668410,1732817444017,-2800.08,9.999e-05,2]
[343668411,1732817444026,-2800.08,9.999e-05,2]
[343668412,1732817444035,-2800.08,9.999e-05,2]
[343668413,1732817444043,-2800.08,9.999e-05,2]
[343668414,1732817444052,-2800.08,9.999e-05,2]
[343668415,1732817444061,-2800.08,9.999e-05,2]
[343668416,1732817444071,-1359.31633245,9.999e-05,2]
[343668420,1732817446338,-1440.76366755,9.999e-05,2]
[343668421,1732817446348,-2800.08,9.999e-05,2]
[343668422,1732817446357,-2800.08,9.999e-05,2]
[343668423,1732817446367,-2800.08,9.999e-05,2]
[343668424,1732817446376,-2800.08,9.999e-05,2]
[343668425,1732817446386,-2800.08,9.999e-05,2]
[343668426,1732817446395,-2800.08,9.999e-05,2]
[343668427,1732817446405,-2800.08,9.999e-05,2]
[343668428,1732817446414,-2800.08,9.999e-05,2]
[343668429,1732817446423,-2800.08,9.999e-05,2]
[343668430,1732817446433,-2800.08,9.999e-05,2]
[343668431,1732817446443,-2800.08,9.999e-05,2]
[343668432,1732817446452,-2800.2933446,9.999e-05,2]
[343668433,1732817446461,-500.0,9.999e-05,2]
[343668434,1732817446471,-500.0,9.999e-05,2]
[343668435,1732817446480,-500.0,9.999e-05,2]
[343668436,1732817446489,-500.0,9.999e-05,2]
[343668437,1732817446499,-500.0,9.999e-05,2]
[343668438,1732817446508,-500.0,9.999e-05,2]
[343668439,1732817446518,-500.0,9.999e-05,2]
[343668440,1732817446527,-500.0,9.999e-05,2]
[343668441,1732817446538,-500.0,9.999e-05,2]
[343668442,1732817446548,-500.0,9.999e-05,2]
[343668443,1732817446558,-500.0,9.999e-05,2]
[343668444,1732817446567,-211.84,9.999e-05,2]
[343668445,1732817446577,-500.0,9.999e-05,2]
[343668446,1732817446589,-237.18267104,9.999e-05,2]
[343668447,1732817446598,-500.0,9.999e-05,2]
[343668448,1732817446607,-500.0,9.999e-05,2]
[343668449,1732817446617,-500.0,9.999e-05,2]
[343668450,1732817446626,-500.0,9.999e-05,2]
[343668452,1732817446636,-500.0,9.999e-05,2]
[343668454,1732817446645,-150.01,9.999e-05,2]
[343668456,1732817446655,-504.36,9.999e-05,2]
[343668458,1732817446664,-462.11019707,9.999e-05,2]
[343668460,1732817446674,-435.72133139,9.999e-05,2]
[343668462,1732817446683,-15989.07586037,9.999e-05,2]
[343668463,1732817446691,-273.30497852,9.999e-05,2]
[343668465,1732817446701,-474285.43929531,0.0001,2]
[343668470,1732817446732,-189834.147598,0.0001,2]
[343668482,1732818166606,-168.21841712,0.00012,10]
[343668615,1732818607146,-1257.39,8.219e-05,2]
[343668616,1732818607169,-271.44,8.659e-05,2]
[343668617,1732818607192,-14183.34391293,8.659e-05,2]
[343668618,1732818607215,-250.0,8.681e-05,2]
[343668619,1732818607237,-250.0,8.721e-05,2]
[343668620,1732818607262,-868.80896978,8.721e-05,2]
[343668621,1732818607285,-10365.9857,8.736e-05,2]
[343668622,1732818607319,-23900.0,8.837e-05,2]
[343668623,1732818607347,-868.80896977,8.842e-05,2]
[343668624,1732818607371,-497.69,8.843e-05,2]
[343668625,1732818607396,-276.23,8.99e-05,2]
[343668626,1732818607420,-150.0,8.999e-05,2]
[343668627,1732818607443,-34048.76904752,9e-05,2]
[343668628,1732818626142,-15501.679,9e-05,2]
[343668645,1732818631645,-48153.55544507,9e-05,2]
[343668646,1732818631654,-2000.0,9e-05,2]
[343668647,1732818631664,-1000.0,9.007e-05,2]
[343668648,1732818631674,-250.0,9.071e-05,2]
[343668649,1732818631683,-1170.24,9.071e-05,2]
[343668650,1732818631692,-195.28,9.098e-05,2]
[343668651,1732818631701,-166.81,9.513e-05,2]
[343668652,1732818631711,-158.91,9.589e-05,2]
[343668653,1732818631722,-317.99,9.589e-05,2]
[343668654,1732818631733,-246.92,9.678e-05,2]
[343668655,1732818631742,-189.18738756,9.678e-05,2]
[343669062,1732818640353,-119.30261244,9.678e-05,2]
[343669063,1732818640377,-181.21,9.733e-05,2]
[343669064,1732818640400,-564.11,9.799e-05,2]
[343669065,1732818640423,-548.0,9.801e-05,2]
[343669066,1732818640445,-255.0,9.899e-05,2]
[343669067,1732818640467,-12636.9114,9.899e-05,2]
[343669068,1732818640489,-1418.1488,9.899e-05,2]
[343669069,1732818640511,-821.8955,9.899e-05,2]
[343669070,1732818640532,-633.0,9.9e-05,2]
[343669071,1732818640555,-194.6459,9.9e-05,2]
[343669072,1732818640578,-34305.316,9.9e-05,2]
[343669073,1732818640602,-3379.0653,9.9e-05,2]
[343669074,1732818640629,-1096.0,9.9e-05,2]
[343669075,1732818640654,-261.44312275,9.971e-05,2]
[343669076,1732818640677,-498.32,9.971e-05,2]
[343669077,1732818640700,-261.44312275,9.976e-05,2]
[343669078,1732818640722,-261.44312275,9.982e-05,2]
[343669079,1732818640745,-261.44312275,9.982e-05,2]
[343669080,1732818640981,-792.43,9.984e-05,2]
[343669081,1732818641007,-261.44312275,9.986e-05,2]
[343669082,1732818641031,-1202.465,9.99e-05,2]
[343669083,1732818641055,-151.28528177,9.99e-05,2]
[343669084,1732818641079,-261.44312275,9.998e-05,2]
[343669085,1732818641103,-506.18,9.999e-05,2]
[343669086,1732818641126,-500.0,9.999e-05,2]
[343669087,1732818641150,-5800.0,9.999e-05,2]
[343669088,1732818641173,-500.0,9.999e-05,2]
[343669089,1732818641196,-612.26,9.999e-05,2]
[343669090,1732818641219,-500.0,9.999e-05,2]
[343669091,1732818641241,-500.0,9.999e-05,2]
[343669092,1732818641266,-500.0,9.999e-05,2]
[343669093,1732818641289,-500.0,9.999e-05,2]
[343669094,1732818641313,-500.0,9.999e-05,2]
[343669095,1732818641337,-500.0,9.999e-05,2]
[343669096,1732818641362,-562.7085732,9.999e-05,2]
[343669097,1732818641386,-500.0,9.999e-05,2]
[343669098,1732818641411,-500.0,9.999e-05,2]
[343669099,1732818641436,-446.37,9.999e-05,2]
[343669100,1732818641460,-500.0,9.999e-05,2]
[343669101,1732818641483,-500.0,9.999e-05,2]
[343669102,1732818641506,-630.82,9.999e-05,2]
[343669103,1732818641528,-1176.13,9.999e-05,2]
[343669104,1732818641551,-1176.13,9.999e-05,2]
[343669105,1732818641574,-1176.13,9.999e-05,2]
[343669106,1732818641599,-500.0,9.999e-05,2]
[343669107,1732818641621,-1047.50689609,9.999e-05,2]
[343669108,1732818642475,-128.62310391,9.999e-05,2]
[343669109,1732818642486,-1176.13,9.999e-05,2]
[343669110,1732818642496,-1176.13,9.999e-05,2]
[343669111,1732818642505,-853.72603429,9.999e-05,2]
[343669113,1732818642516,-322.40396571,9.999e-05,2]
[343669114,1732818642525,-214.5060343,9.999e-05,2]
[343669116,1732818642537,-961.6239657,9.999e-05,2]
[343669117,1732818642546,-1176.13,9.999e-05,2]
[343669118,1732818642555,-1176.13,9.999e-05,2]
[343669119,1732818642564,-334.90675647,9.999e-05,2]
[343669120,1732818642575,-841.22324353,9.999e-05,2]
[343669121,1732818642585,-1176.13,9.999e-05,2]
[343669122,1732818642595,-1176.13,9.999e-05,2]
[343669123,1732818642604,-1176.13,9.999e-05,2]
[343669124,1732818642613,-1176.13,9.999e-05,2]
[343669125,1732818642622,-1176.13,9.999e-05,2]
[343669126,1732818642632,-1176.13,9.999e-05,2]
[343669127,1732818642641,-1176.13,9.999e-05,2]
[343669128,1732818642651,-288.37,9.999e-05,2]
[343669129,1732818642661,-1176.13,9.999e-05,2]
[343669130,1732818642671,-1176.13,9.999e-05,2]
[343669131,1732818642680,-1176.13,9.999e-05,2]
[343669132,1732818642688,-1176.13,9.999e-05,2]
[343669133,1732818642697,-1176.13,9.999e-05,2]
[343669134,1732818642705,-1176.21,9.999e-05,2]
[343669135,1732818642714,-500.0,9.999e-05,2]
[343669136,1732818642722,-500.0,9.999e-05,2]
[343669137,1732818642732,-500.0,9.999e-05,2]
[343669138,1732818642741,-500.0,9.999e-05,2]
[343669139,1732818642750,-500.0,9.999e-05,2]
[343669140,1732818642760,-500.0,9.999e-05,2]
[343669141,1732818642769,-500.0,9.999e-05,2]
[343669142,1732818642779,-500.0,9.999e-05,2]
[343669143,1732818642788,-312.81369543,9.999e-05,2]
[343669144,1732818642797,-500.0,9.999e-05,2]
[343669145,1732818642805,-500.0,9.999e-05,2]
[343669146,1732818642814,-500.0,9.999e-05,2]
[343669147,1732818642823,-500.0,9.999e-05,2]
[343669148,1732818642833,-500.0,9.999e-05,2]
[343669149,1732818642844,-500.0,9.999e-05,2]
[343669150,1732818642854,-500.0,9.999e-05,2]
[343669151,1732818642863,-500.0,9.999e-05,2]
[343669152,1732818642874,-565.89,9.999e-05,2]
[343669153,1732818642883,-500.0,9.999e-05,2]
[343669154,1732818642893,-500.0,9.999e-05,2]
[343669155,1732818642902,-237.55,9.999e-05,2]
[343669156,1732818642912,-637.04,9.999e-05,2]
[343669157,1732818642921,-500.0,9.999e-05,2]
[343669158,1732818642930,-500.0,9.999e-05,2]
[343669159,1732818642940,-500.0,9.999e-05,2]